bitfinex-derivatives/quotes_ETHF0:USTF0_20250410
["timestamp","ask_amount","ask_price","bid_price","bid_amount"]
[1744301233718,11.86822917,1499.9,1499.6,0.01000233]
[1744301233917,1.3345,1499.7,1499.6,0.01000233]
[1744301234125,10.2678,1499.8,1499.7,1.3345]
[1744301234325,10.2678,1499.8,1499.6,3.21780233]
[1744301234326,10.59219652,1499.8,1499.6,14.18817233]
[1744301234628,1.6589469,1499.7,1499.6,12.85360233]
[1744301234830,1.6589469,1499.7,1499.6,0.01000233]
[1744301235327,10.2678,1499.8,1499.7,1.3345]
[1744301235520,3.33448,1500.5,1499.7,10.3977]
[1744301235720,1.33406,1500.2,1500.1,3.2078]
[1744301235920,1.65850616,1500.2,1500.1,3.2078]
[1744301236122,0.32444616,1500.2,1500.1,4.54195]
[1744301236318,10.4971,1500.4,1500.3,1.33397]
[1744301236524,5.852,1501.1,1500.5,3.33436]
[1744301236833,11.83053,1500.9,1500.8,3.2078]
[1744301237031,12.15502607,1500.9,1500.8,44.0078]
[1744301237528,10.82159607,1500.9,1500.8,45.34132]
[1744301237722,12.15502607,1500.9,1500.8,44.0078]
[1744301237928,1.65792607,1500.9,1500.8,44.0078]
[1744301238126,0.01000233,1501.0,1500.8,44.0078]
[1744301238319,0.01000233,1501.0,1500.9,1.33343]
[1744301238519,1.34335233,1501.0,1500.9,10.2682]
[1744301238929,0.01000233,1501.0,1500.9,11.60163]
[1744301239426,15.6767,1501.7,1501.4,1.33297]
[1744301239617,1.33306,1501.4,1501.3,3.2078]
[1744301239822,1.33306,1501.4,1500.9,10.2682]
[1744301239823,0.32366063,1501.4,1501.1,3.2078]
[1744301240017,10.0324,1501.9,1501.3,3.2078]
[1744301240231,10.0324,1501.9,1501.8,3.2078]
[1744301240424,10.0324,1501.9,1501.6,3.2078]
[1744301240622,3.33227,1501.5,1501.2,3.2078]
[1744301240817,1.33308,1501.3,1501.2,3.2078]
[1744301241025,1.33314,1501.3,1501.0,4.54109]
[1744301241330,1.33326,1501.1,1501.0,3.2078]
[1744301241927,1.33326,1501.1,1500.9,1.34340233]
[1744301242123,10.04240233,1501.2,1501.1,1.33326]
[1744301242324,0.01000233,1501.2,1501.1,1.33326]
[1744301242632,0.01000233,1501.2,1501.0,13.4982]
[1744301242926,1.33326,1501.1,1501.0,3.2078]
[1744301243129,10.01910233,1501.2,1501.0,3.2078]
[1744301243425,10.01910233,1501.2,1501.1,3.2078]
[1744301243629,1.33335,1501.0,1500.9,3.21780233]
[1744301244331,6.33335,1501.0,1500.9,0.01000233]
[1744301244830,1.33333,1501.1,1500.9,0.01000233]
[1744301245027,9.4961,1501.1,1501.0,1.33335]
[1744301245423,9.4961,1501.1,1500.9,3.21780233]
[1744301245625,9.4961,1501.1,1501.0,1.33335]
[1744301245824,10.8294,1501.1,1500.9,12.68770233]
[1744301246127,0.01000233,1501.2,1501.1,1.33326]
[1744301246317,1.34317233,1501.2,1501.1,3.2078]
[1744301246518,0.01000233,1501.2,1501.1,4.54106]
[1744301246929,0.01000233,1501.2,1501.1,3.2078]
[1744301247126,0.01000233,1501.2,1501.1,4.54106]
[1744301247626,7.18451,1502.0,1501.3,3.33253]
[1744301247822,16.08104496,1502.9,1501.9,3.2078]
[1744301248025,9.9453,1502.6,1502.3,4.53996]
[1744301248234,9.9453,1502.6,1502.3,44.0078]
[1744301248527,9.9453,1502.6,1502.3,40.8]
[1744301248528,1.3321,1502.4,1502.3,40.8]
[1744301248731,1.3321,1502.4,1502.3,40.81000233]
[1744301248928,6.3321,1502.4,1502.3,40.81000233]
[1744301249130,5.0,1502.4,1502.1,3.2078]
[1744301249328,11.27753,1502.3,1502.1,3.2078]
[1744301249639,9.9453,1502.3,1502.1,3.2078]
[1744301249830,3.2078,1502.7,1502.1,8.2078]
[1744301250135,1.33219,1502.3,1502.2,40.8]
[1744301250433,1.3324,1502.1,1501.8,3.2078]
[1744301250628,10.3904,1502.4,1501.8,3.2078]
[1744301250931,0.01000233,1502.6,1502.2,3.2078]
[1744301251131,0.01000233,1502.6,1502.4,3.2078]
[1744301251331,0.01000233,1502.6,1502.2,3.2078]
[1744301251532,1.33214,1502.4,1502.3,0.01000233]
[1744301251725,10.3904,1502.5,1502.3,3.21780233]
[1744301251923,10.3904,1502.5,1502.3,0.01000233]
[1744301252227,0.01000233,1502.6,1502.3,0.01000233]
[1744301252426,0.01000233,1502.6,1502.5,4.53981]
[1744301252625,5.34563997,1502.9,1502.5,120.31987344]
[1744301252831,3.98337997,1502.9,1502.8,4.53955]
[1744301253125,11.8208502,1503.1,1502.8,44.0078]
[1744301253330,10.3024402,1503.1,1503.0,4.53937]
[1744301253933,18.76263717,1503.1,1503.0,3.2078]
[1744301254234,10.3024402,1503.1,1503.0,4.53937]
[1744301254437,2.60512772,1503.4,1503.3,1.33131]
[1744301254630,18.51297904,1503.6,1503.5,1.33113]
[1744301254834,18.51297904,1503.6,1503.5,4.53893]
[1744301255040,13.31903904,1503.6,1503.5,16.20593]
[1744301255246,13.78151697,1503.6,1503.5,3.2078]
[1744301255435,10.4303,1503.8,1503.5,3.2078]
[1744301255636,11.76116,1503.8,1503.7,3.2078]
[1744301255941,6.6528,1503.8,1503.7,4.53875]
[1744301256244,13.78151697,1503.8,1503.7,3.2078]
[1744301256442,11.76092,1504.1,1503.7,3.2078]
[1744301256650,6.6528,1504.0,1503.9,4.53857]
[1744301256934,6.6528,1504.0,1503.8,9.5693]
[1744301257341,6.6528,1503.9,1503.8,10.90016]
[1744301257640,6.6528,1503.9,1503.7,3.2078]
[1744301257641,1.33086,1503.8,1503.7,3.2078]
[1744301257938,7.98366,1503.8,1503.7,3.2078]
[1744301258139,15.11237697,1503.8,1503.7,3.2078]
[1744301258340,15.11237697,1503.8,1503.7,44.0078]
[1744301258740,15.11237697,1503.8,1503.7,40.8]
[1744301258934,1.33104,1503.6,1503.5,3.2078]
[1744301259136,1.33104,1503.6,1503.4,1.34121233]
[1744301259335,6.6528,1503.5,1503.4,1.34121233]
[1744301259535,8.45975697,1503.6,1503.4,1.34121233]
[1744301259536,1.33089,1503.8,1503.6,1.33104]
[1744301259734,6.6528,1503.9,1503.7,14.1886]
[1744301259929,7.98362,1503.9,1503.7,12.8577]
[1744301260134,7.98362,1503.9,1503.7,14.18857]
[1744301260335,6.6528,1503.9,1503.8,1.33086]
[1744301260538,10.3825,1504.1,1503.9,1.33077]
[1744301260737,7.98349,1504.0,1503.9,3.2078]
[1744301261035,1.33095,1503.7,1503.6,3.2078]
[1744301261238,1.33088,1503.8,1503.6,3.2078]
[1744301261438,1.33088,1503.8,1503.6,4.53879]
[1744301261641,6.6528,1503.7,1503.6,4.53879]
[1744301262041,7.98375,1503.7,1503.6,3.2078]
[1744301262244,6.6528,1503.7,1503.6,3.2078]
[1744301262445,6.6528,1503.7,1503.6,4.53882]
[1744301262747,7.98375,1503.7,1503.6,3.2078]
[1744301263041,1.33113,1503.5,1503.4,44.01780233]
[1744301263246,1.33113,1503.5,1503.4,0.01000233]
[1744301263449,1.33157,1503.0,1502.9,3.2078]
[1744301263638,19.66121767,1503.4,1503.0,1.33157]
[1744301263944,1.33148,1503.1,1503.0,40.8]
[1744301264139,11.01174,1503.2,1503.0,1.33151]
[1744301264440,6.65279767,1503.1,1502.9,3.2078]
[1744301264648,6.65279767,1503.1,1503.0,42.13157]
[1744301264851,1.33148,1503.1,1503.0,40.8]
[1744301265139,0.01000233,1503.3,1503.2,1.33139]
[1744301265344,6.6628,1503.3,1503.2,4.53919]
[1744301265737,0.67279778,1503.3,1503.2,4.53919]
[1744301265943,0.67279778,1503.3,1503.1,2.99461]
[1744301266137,10.82009778,1503.2,1503.1,2.99461]
[1744301266338,10.1473,1503.2,1503.1,2.99461]
[1744301266544,2.00418778,1503.2,1503.1,1.6632]
[1744301267044,1.33119,1503.5,1503.4,1.33122]
[1744301267240,14.8638,1503.9,1503.5,1.33113]
[1744301267241,1.33106,1503.6,1503.5,1.33113]
[1744301267640,1.33095,1503.7,1503.3,16.72207]
[1744301267847,1.33104,1503.6,1503.5,3.2078]
[1744301268150,10.82009778,1503.7,1503.6,1.33104]
[1744301268349,1.33066,1504.1,1503.9,1.3307]
[1744301268550,10.60259778,1504.0,1503.7,1.33095]
[1744301268842,10.60259778,1504.0,1503.6,3.2078]
[1744301269045,1.33093,1503.8,1503.7,0.01000233]
[1744301269436,11.93352778,1503.8,1503.7,0.01000233]
[1744301269836,25.0,2174.0,1503.7,6.34095233]
[1744301269837,3.2078,1504.2,1503.7,6.34095233]
[1744301270136,1.33054,1504.2,1504.0,3.2078]
[1744301270341,0.67279778,1504.1,1504.0,4.53847]
[1744301270537,0.67279778,1504.3,1504.0,4.53847]
[1744301270743,9.9298,1504.2,1504.1,1.3306]
[1744301270939,11.93314778,1504.2,1504.0,3.2078]
[1744301271148,0.67279778,1504.1,1504.0,4.53842]
[1744301271346,10.60259778,1504.1,1504.0,4.53849]
[1744301271546,10.60259778,1504.1,1504.0,45.33849]
[1744301271743,0.67279778,1504.1,1504.0,45.33849]
[1744301272348,10.5011,1504.4,1504.3,1.33042]
[1744301272546,0.67279778,1504.3,1504.1,10.4557]
[1744301272743,0.67279778,1504.3,1504.1,1.33057]
[1744301272947,11.17389778,1504.2,1504.1,1.3306]
[1744301273252,0.67279778,1504.2,1504.1,11.7863]
[1744301273449,3.2078,1504.9,1504.3,1.33042]
[1744301273652,1.33015,1504.7,1504.4,3.2078]
[1744301273846,11.17389778,1504.8,1504.4,6.53361]
[1744301274041,2.00288778,1504.7,1504.6,1.33011]
[1744301274246,2.00292778,1504.7,1504.4,3.21780233]
[1744301274446,1.32991,1504.9,1504.6,6.53316]
[1744301274646,1.32991,1504.9,1504.6,3.2078]
[1744301274647,0.67279778,1504.8,1504.6,3.2078]
[1744301274854,10.96867,1504.7,1504.4,13.67350233]
[1744301275045,10.31139778,1504.7,1504.6,1.33016]
[1744301275246,9.6386,1504.7,1504.6,4.53796]
[1744301275448,3.2078,1505.1,1504.8,1.32995]
[1744301275752,10.31139778,1505.0,1504.6,3.2078]
[1744301275951,1.33024,1504.5,1504.4,0.01000233]
[1744301276155,1.32985,1505.0,1504.6,4.6523]
[1744301276447,3.2078,1504.9,1504.6,9.1902]
[1744301276647,3.2078,1504.8,1504.6,4.6523]
[1744301276851,10.96867,1504.7,1504.6,4.6523]
[1744301277046,20.71047,1504.7,1504.6,4.6523]
[1744301277253,1.33007,1504.7,1504.6,4.6523]
[1744301277449,9.6386,1504.7,1504.6,4.6523]
[1744301277641,10.96867,1504.7,1504.6,4.6523]
[1744301277847,9.6386,1504.7,1504.6,5.98246]
[1744301278051,9.6386,1504.7,1504.6,9.19026]
[1744301278556,9.6386,1504.7,1504.6,5.98246]
[1744301278758,9.6386,1504.7,1504.6,9.19026]
[1744301279251,19.49933457,1504.7,1504.6,4.6523]
[1744301279453,1.33044,1504.3,1504.0,3.2078]
[1744301279653,1.33031,1504.5,1504.2,1.33047]
[1744301279843,17.7159,1504.7,1504.1,13.44118]
[1744301280045,14.5081,1504.7,1504.4,3.2078]
[1744301280246,9.6386,1504.7,1504.6,1.33016]
[1744301280544,9.6386,1504.7,1504.6,4.53796]
[1744301280742,4.8695,1505.2,1505.1,1.32971]
[1744301280948,4.53719,1505.5,1505.3,1.32946]
[1744301281147,9.99302917,1505.4,1505.0,13.1097]
[1744301281358,0.00989044,1505.6,1505.5,1.32936]
[1744301281654,9.67909044,1505.6,1505.5,1.32936]
[1744301281854,9.67909044,1505.6,1505.4,3.21776876]
[1744301282058,9.67909044,1505.6,1505.4,0.00996876]
[1744301282247,9.67909044,1505.6,1505.4,3.21776876]
[1744301282453,4.4e-07,1505.6,1505.5,1.32936]
[1744301282654,4.4e-07,1505.6,1505.5,11.23126]
[1744301282850,5.852,1507.2,1507.1,1.32795]
[1744301283052,9.728,1507.9,1507.1,1.32795]
[1744301283053,7.62e-06,1507.3,1507.1,44.0078]
[1744301283256,7.62e-06,1507.3,1507.2,11.22976]
[1744301283455,7.62e-06,1507.3,1507.2,1.32786]
[1744301283663,7.62e-06,1507.3,1507.1,40.8]
[1744301284054,4.53566,1507.2,1507.1,40.80996876]
[1744301284252,4.53566,1507.2,1507.1,0.00996876]
[1744301284452,27.83037,1507.2,1506.3,3.2078]
[1744301284651,4.53587,1507.0,1506.6,1.32836]
[1744301284852,10.4509,1506.9,1506.7,1.32826]
[1744301285055,3.2078,1507.2,1506.7,3.2078]
[1744301285362,7.62e-06,1507.3,1507.2,1.32786]
[1744301285866,7.62e-06,1507.3,1507.2,6.32786]
[1744301286161,6.38e-06,1507.4,1507.2,10.1343]
[1744301286363,6.38e-06,1507.4,1507.3,1.32777]
[1744301286658,6.38e-06,1507.4,1507.2,11.46213]
[1744301286861,6.38e-06,1507.4,1507.1,0.00996876]
[1744301287064,6.38e-06,1507.4,1507.3,45.33557]
[1744301288258,6.38e-06,1507.4,1507.3,50.33557]
[1744301288467,3.2078,1508.4,1507.4,3.3192]
[1744301288666,3.2078,1508.4,1507.6,3.2078]
[1744301288667,14.00785,1508.4,1507.6,3.2078]
[1744301288861,3.2078,1508.1,1507.8,3.2078]
[1744301289062,6.40040372,1508.8,1507.5,9.6944]
[1744301289063,3.2078,1507.9,1507.5,3.2078]
[1744301289259,3.2078,1507.6,1507.3,42.12773]
[1744301289564,9.4732,1507.5,1507.3,40.8]
[1744301289764,3.2078,1508.0,1507.3,40.80996876]
[1744301290059,3.2078,1508.0,1507.9,1.32724]
[1744301290262,5.852,1508.5,1507.9,3.2078]
[1744301290466,10.0922,1508.4,1507.8,3.2078]
[1744301290658,3.2078,1508.1,1507.9,9.9112]
[1744301290855,3.2078,1508.9,1507.9,11.615]
[1744301291162,3.2078,1508.9,1508.4,6.52475]
[1744301291367,10.0922,1508.8,1508.7,1.32654]
[1744301291567,10.0922,1508.8,1508.7,4.53434]
[1744301291863,3.2078,1509.3,1509.0,1.32622]
[1744301292169,13.3,1509.3,1509.0,1.32624]
[1744301292376,4.53399,1509.1,1509.0,0.00996876]
[1744301292867,9.53399,1509.1,1509.0,0.00996876]
[1744301293058,8.2078,1509.1,1509.0,0.00996876]
[1744301293260,5.0,1509.1,1509.0,0.00996876]
[1744301293669,9.53399,1509.1,1509.0,0.00996876]
[1744301293863,9.53399,1509.1,1508.5,9.7416]
[1744301293864,1.32646,1508.8,1508.3,3.2078]
[1744301294066,3.2078,1508.9,1508.5,3.2078]
[1744301294261,10.3433,1508.7,1508.6,42.12663]
[1744301294465,13.5511,1508.7,1508.1,3.2078]
[1744301294767,10.3433,1508.7,1508.5,1.32669]
[1744301294966,0.00996876,1508.6,1508.4,40.8]
[1744301295169,0.00996876,1508.6,1508.5,4.53452]
[1744301295557,0.00996876,1508.6,1508.5,14.27612]
[1744301295756,0.00996876,1508.6,1508.4,40.8]
[1744301295757,0.00996876,1508.6,1508.4,1.32678]
[1744301295961,0.00996876,1508.6,1508.4,1.32673]
[1744301296165,9.91386876,1508.6,1508.3,3.2078]
[1744301296360,3.2078,1508.5,1508.3,40.8]
[1744301296564,21.5089,1508.4,1507.7,3.2078]
[1744301296870,3.2078,1507.8,1507.0,16.7012]
[1744301297065,11.23139,1507.7,1507.1,13.11678]
[1744301297267,1.32765,1507.5,1507.1,9.7969]
[1744301297471,9.9039,1507.7,1506.9,3.2078]
[1744301297472,3.2078,1507.4,1506.9,3.2078]
[1744301297667,14.8128,1507.3,1506.7,3.2078]
[1744301297967,9.9039,1507.2,1507.0,0.00996876]
[1744301298170,3.2078,1507.1,1507.0,0.00996876]
[1744301298364,3.2078,1507.1,1506.5,3.2078]
[1744301298565,9.9039,1507.0,1506.5,6.52887]
[1744301298867,9.9039,1507.0,1506.5,40.8]
[1744301299169,18.9637,1507.0,1506.2,9.7969]
[1744301299467,18.9637,1507.0,1506.9,1.32813]
[1744301299671,15.7559,1507.0,1506.8,1.3282]
[1744301299967,9.9039,1507.0,1506.6,3.2078]
[1744301300167,3.21776876,1507.3,1506.8,3.2078]
[1744301300367,15.8686,1507.2,1506.6,3.2078]
[1744301300569,1.32822,1506.8,1506.5,1.32842]
[1744301300769,10.0166,1506.7,1506.6,1.32839]
[1744301300962,10.0166,1506.7,1506.4,0.00996876]
[1744301301466,5.852,1507.2,1506.5,3.2078]
[1744301301770,10.0166,1507.0,1506.5,3.2078]
[1744301301959,1.32848,1506.5,1506.4,0.00996876]
[1744301302163,4.53628,1506.5,1506.4,0.00996876]
[1744301302363,30.26442,1506.9,1506.4,0.00996876]
[1744301302364,13.0451,1506.6,1506.4,0.00996876]
[1744301302568,1.32848,1506.5,1506.4,0.00996876]
[1744301302767,11.16578,1506.5,1506.4,0.00996876]
[1744301302968,1.32877,1506.2,1505.9,42.12898]
[1744301303164,4.53648,1506.3,1505.8,3.2078]
[1744301303369,1.32875,1506.2,1505.8,3.2078]
[1744301303568,1.32875,1506.2,1505.9,1.32893]
[1744301303772,17.459,1506.4,1505.8,3.2078]
[1744301303773,17.459,1506.4,1505.8,4.53682]
[1744301303971,1.32945,1505.4,1505.2,4.6505]
[1744301304169,3.32253,1505.9,1505.2,1.40706331]
[1744301304170,1.32954,1505.3,1505.2,1.40706331]
[1744301304373,1.3295,1505.4,1505.1,0.00996876]
[1744301304576,0.00996876,1505.4,1505.2,3.2078]
[1744301304776,0.00996876,1505.4,1505.3,1.32954]
[1744301305076,8.76e-06,1505.4,1505.3,1.32954]
[1744301305374,8.76e-06,1505.4,1505.3,6.32954]
[1744301306171,8.76e-06,1505.4,1505.3,1.32954]
[1744301306371,1.32963,1505.2,1505.1,0.00996876]
[1744301306576,3.2078,1505.2,1504.2,6.53407]
[1744301306771,3.2078,1505.2,1504.5,1.33018]
[1744301306772,4.53778,1504.9,1504.5,1.33018]
[1744301307074,1.33013,1504.7,1504.4,1.33031]
[1744301307280,13.0374,1504.8,1504.2,3.2078]
[1744301307474,9.8296,1504.6,1504.5,1.3302]
[1744301307780,9.8296,1504.6,1504.3,0.00996876]
[1744301308274,9.8296,1504.6,1504.5,1.33024]
[1744301308580,9.8296,1504.6,1504.3,0.00996876]
[1744301308776,9.8296,1504.6,1504.5,1.33024]
[1744301309079,14.8296,1504.6,1504.4,1.33027]
[1744301309274,1.33033,1504.4,1504.3,0.00996876]
[1744301309468,1.33033,1504.4,1504.2,4.6536]
[1744301309469,1.33042,1504.3,1504.2,4.6536]
[1744301309777,115.2493,1504.3,1503.5,3.2078]
[1744301310075,3.2078,1503.9,1503.5,3.2078]
[1744301310278,1.33073,1504.0,1503.7,1.33093]
[1744301310576,1.33089,1503.8,1503.5,1.33111]
[1744301310774,12.95081,1503.9,1503.7,0.00996876]
[1744301311078,3.2078,1503.8,1503.2,1.33134]
[1744301311276,1.33115,1503.5,1503.2,1.33137]
[1744301311474,3.32725,1503.8,1503.0,40.8]
[1744301311666,3.2078,1503.2,1502.9,4.53943]
[1744301311866,3.2078,1503.2,1502.7,3.2078]
[1744301312270,3.2078,1503.2,1502.8,1.33167]
[1744301312472,0.00996876,1503.1,1503.0,1.33157]
[1744301312669,8.76e-06,1503.1,1503.0,6.33157]
[1744301313072,8.76e-06,1503.1,1503.0,11.30857]
[1744301313475,8.76e-06,1503.1,1502.9,1.33162]
[1744301313675,8.76e-06,1503.1,1502.9,1.33166]
[1744301313878,8.76e-06,1503.1,1502.8,0.00663712]
[1744301313879,1.33166,1502.9,1502.8,0.00663712]
[1744301314278,9.8981,1503.0,1502.8,0.00663712]
[1744301314483,1.33166,1502.9,1502.8,0.00663712]
[1744301314782,7.18366,1502.9,1502.8,0.00663712]
[1744301314992,12.18366,1502.9,1502.8,0.00663712]
[1744301315288,3.32938,1502.8,1501.7,3.2078]
[1744301315472,3.33027,1502.4,1501.8,11.71211]
[1744301315670,3.33027,1502.4,1501.7,3.2078]
[1744301315671,1.33262,1501.9,1501.7,3.2078]
[1744301315883,17.482,1502.4,1501.7,6.53956]
[1744301316072,17.482,1502.4,1502.0,3.2078]
[1744301316277,18.81417,1502.4,1502.1,1.33235]
[1744301316484,1.33232,1502.2,1502.0,3.21776]
[1744301316685,17.49196876,1502.4,1502.0,0.00996]
[1744301316881,1.33237,1502.1,1502.0,0.00996]
[1744301317388,1.33234,1502.2,1502.0,0.00996]
[1744301317689,1.33237,1502.1,1502.0,0.00996]
[1744301317881,24.03005876,1502.4,1502.0,0.00996]
[1744301318082,1.33237,1502.1,1502.0,0.00996]
[1744301318680,13.32119,1502.3,1502.0,0.00996]
[1744301318681,1.33235,1502.2,1502.0,3.21776]
[1744301318977,1.33237,1502.1,1502.0,0.00996]
[1744301319177,1.33268,1501.8,1501.5,1.33287]
[1744301319380,1.3327,1501.8,1501.5,1.33288]
[1744301319689,11.636,1501.9,1501.6,3.2078]
[1744301319981,20.83328876,1502.4,1501.9,1.33252]
[1744301320190,9.6552,1502.0,1501.8,3.2078]
[1744301320379,3.33049,1502.3,1501.8,3.2078]
[1744301320581,10.9875,1502.2,1502.0,3.2078]
[1744301320786,5.86196876,1502.4,1502.0,3.2078]
[1744301321092,0.00996876,1502.4,1502.2,4.54001]
[1744301321285,0.00996876,1502.4,1502.3,1.33219]
[1744301321490,5.852,1503.2,1502.3,10.3406]
[1744301321688,9.6552,1503.2,1502.9,3.2078]
[1744301321884,1.33128,1503.4,1503.1,3.2078]
[1744301322082,1.33139,1503.2,1503.1,44.0078]
[1744301322477,12.98328,1503.4,1502.9,3.2078]
[1744301322684,9.6552,1503.1,1502.9,3.2078]
[1744301322986,0.00996876,1503.3,1503.0,3.21776876]
[1744301323189,1.33146,1503.2,1503.0,3.21776876]
[1744301323389,0.00996876,1503.3,1503.0,3.21776876]
[1744301323686,1.33141,1503.2,1503.0,1.34150876]
[1744301323883,1.34127876,1503.3,1503.2,3.2078]
[1744301324078,0.00996876,1503.3,1503.0,0.00996876]
[1744301324278,0.00996876,1503.3,1503.1,3.2078]
[1744301324486,1.34132876,1503.3,1503.1,3.2078]
[1744301324679,1.33148,1503.1,1503.0,9.62296876]
[1744301324878,18.82548,1503.1,1503.0,8.76e-06]
[1744301325085,1.33219,1502.3,1502.2,9.613]
[1744301325285,18.492,1503.0,1502.2,14.613]
[1744301325487,10.0615,1502.8,1502.4,3.2078]
[1744301325792,10.0615,1502.8,1502.5,9.613]
[1744301326088,3.3296,1502.7,1501.9,3.2078]
[1744301326278,1.33237,1502.2,1502.1,9.5208]
[1744301326693,1.33237,1502.2,1502.1,17.7286]
[1744301326992,1.33237,1502.2,1501.9,3.2078]
[1744301327193,9.4992,1502.1,1501.8,3.2078]
[1744301327394,1.33255,1501.9,1501.8,3.2078]
[1744301327597,3.33147,1501.9,1501.4,4.54073]
[1744301327788,9.4992,1501.8,1501.6,3.2078]
[1744301327988,1.34264876,1501.8,1501.6,3.2078]
[1744301328188,0.00996876,1501.8,1501.6,44.0078]
[1744301328492,0.00996876,1501.8,1501.6,9.54054]
[1744301328788,0.00996876,1501.8,1501.7,9.5208]
[1744301328981,0.00996876,1501.8,1501.7,50.3208]
[1744301329186,1.34260876,1501.8,1501.7,50.3208]
[1744301329386,0.00996876,1501.8,1501.7,50.3208]
[1744301329590,0.00996876,1501.8,1501.7,56.65352]
[1744301329890,1.33215,1502.4,1502.2,1.33228]
[1744301330089,9.7723,1502.6,1502.3,3.2078]
[1744301330295,8.1298,1503.2,1502.5,3.2078]
[1744301330487,1.33166,1502.9,1502.8,3.2078]
[1744301330691,3.32928,1502.9,1502.6,3.2078]
[1744301330892,1.33184,1502.7,1502.6,3.2078]
[1744301331090,9.78226876,1502.9,1502.6,3.21776876]
[1744301331295,0.00996876,1502.9,1502.8,4.53955]
[1744301331488,0.00996876,1502.9,1502.8,45.33955]
[1744301331692,9.7723,1503.4,1502.8,49.0078]
[1744301331886,9.7723,1503.4,1503.3,3.2078]
[1744301332089,9.9853,1503.3,1502.8,44.0078]
[1744301332384,1.33165,1503.0,1502.8,44.0078]
[1744301332584,1.33163,1503.0,1502.8,44.0078]
[1744301332782,0.00996876,1503.1,1502.9,3.2078]
[1744301332989,0.00996876,1503.1,1503.0,1.33157]
[1744301333494,0.00996876,1503.1,1503.0,11.26937]
[1744301333884,0.00996876,1503.1,1503.0,16.26937]
[1744301334291,5.852,1503.6,1503.5,1.33113]
[1744301334490,1.33104,1503.6,1503.5,3.2078]
[1744301335187,10.0957,1503.7,1503.5,3.2078]
[1744301335387,1.33104,1503.6,1503.5,3.2078]
[1744301335793,1.33113,1503.5,1503.4,0.00996876]
[1744301336292,10.0957,1503.7,1503.4,0.00996876]
[1744301336496,10.0957,1503.7,1503.6,1.33104]
[1744301336702,0.00996876,1503.8,1503.7,1.33095]
[1744301336995,1.34087876,1503.8,1503.6,1.331]
[1744301337198,0.00996876,1503.8,1503.7,1.33095]
[1744301338304,0.00996876,1503.8,1503.7,6.33095]
[1744301338487,0.00996876,1503.8,1503.7,16.78155]
[1744301338693,0.00996876,1503.8,1503.7,57.58155]
[1744301338889,5.852,1504.5,1503.7,56.2506]
[1744301339188,1.33018,1504.6,1504.4,1.33029]
[1744301339389,13.0315,1504.7,1504.1,3.2078]
[1744301339593,3.32584,1504.4,1504.2,3.2078]
[1744301339794,9.8237,1504.3,1503.8,13.6584]
[1744301339999,1.33086,1503.8,1503.7,40.8]
[1744301340199,6.53443,1504.1,1503.7,40.8]
[1744301340400,1.33077,1503.9,1503.8,13.6584]
[1744301340998,1.33077,1503.9,1503.8,3.2078]
[1744301341199,9.8237,1504.0,1503.8,4.5386]
[1744301341398,9.8237,1504.0,1503.8,13.0434]
[1744301341803,5.852,1504.3,1503.9,1.33074]
[1744301341999,9.4889,1504.4,1504.2,3.2078]
[1744301342201,0.00996876,1504.5,1504.2,4.53829]
[1744301342395,1.33038,1504.4,1504.2,3.2078]
[1744301342599,0.00996876,1504.5,1504.2,3.2078]
[1744301342805,6.53364,1504.4,1503.9,13.0434]
[1744301343103,1.33095,1503.7,1503.6,0.00996876]
[1744301343507,9.53875,1503.7,1503.6,8.76e-06]
[1744301344107,6.33095,1503.7,1503.6,8.76e-06]
[1744301344502,6.6501114,1503.7,1503.6,8.76e-06]
[1744301344807,6.33095,1503.7,1503.6,8.76e-06]
[1744301345009,1.33095,1503.7,1503.6,8.76e-06]
[1744301345397,21.48693879,1503.7,1503.6,8.76e-06]
[1744301346200,16.16775,1503.7,1503.6,8.76e-06]
[1744301346601,1.33095,1503.7,1503.6,8.76e-06]
[1744301346802,10.81982,1503.8,1503.6,8.20780876]
[1744301347005,1.33085,1503.9,1503.7,1.33095]
[1744301347314,0.00996876,1504.5,1504.4,1.33033]
[1744301347517,0.00996876,1504.5,1504.4,4.53813]
[1744301347809,1.3298,1505.0,1504.4,21.16913]
[1744301348010,1.3298,1505.0,1504.6,3.2078]
[1744301348212,10.1646,1505.1,1504.6,3.2078]
[1744301348213,11.49438,1505.1,1504.9,1.32986]
[1744301348506,3.2078,1505.6,1505.1,1.32964]
[1744301348811,1.32954,1505.3,1505.2,3.21776876]
[1744301349010,1.32953,1505.4,1505.2,0.00996876]
[1744301349213,1.32954,1505.3,1505.2,9.65516876]
[1744301349407,0.00996876,1505.5,1505.2,12.86296876]
[1744301349607,0.00996876,1505.5,1505.4,3.2078]
[1744301349803,1.33932876,1505.5,1505.4,3.2078]
[1744301350005,0.00996876,1505.5,1505.4,3.2078]
[1744301350308,0.00996876,1505.5,1505.4,50.33725]
[1744301351203,4.83533233,1505.9,1505.8,1.3291]
[1744301351404,4.83533233,1505.9,1505.8,4.5369]
[1744301351610,6.79193239,1506.0,1505.9,1.32901]
[1744301351905,12.10443292,1506.3,1506.2,1.32874]
[1744301352104,17.52832779,1506.3,1506.2,3.2078]
[1744301352305,17.52832779,1506.3,1506.2,44.0078]
[1744301352502,6.75254487,1506.3,1506.2,44.0078]
[1744301352910,6.75254487,1506.3,1506.2,40.8]
[1744301353107,15.65369487,1506.3,1506.1,0.00996876]
[1744301353307,1.32865,1506.3,1506.2,3.2078]
[1744301353511,1.32865,1506.3,1506.2,44.0078]
[1744301353710,6.75254487,1506.3,1506.2,44.0078]
[1744301354002,6.75254487,1506.3,1506.2,40.8]
[1744301354210,0.00996876,1506.4,1506.2,49.0078]
[1744301354507,5.43386363,1506.4,1506.2,44.0078]
[1744301354707,8.76e-06,1506.4,1506.3,1.32865]
[1744301354910,8.76e-06,1506.4,1506.3,10.0948]
[1744301355107,8.76e-06,1506.4,1506.3,15.0948]